fUSD/lending_fUSD_20250306
["ID","MTS","AMOUNT","RATE_DAILY","PERIOD"]
[355513757,1741221043526,-5976.03393664,0.000114,2]
[355513758,1741221043535,-2659.84408701,0.000114,2]
[355513759,1741221043550,-274.0,0.000114,2]
[355513760,1741221043594,-921.2002,0.000114,2]
[355513762,1741221046071,-550.0,0.00011,2]
[355513763,1741221046083,-440.32038353,0.000114,2]
[355513793,1741221198184,-1986.9489613,0.00011269,2]
[355513794,1741221198205,-300.0,0.00011398,2]
[355513795,1741221198229,-2221.0992,0.00011399,2]
[355513796,1741221198249,-1571.687,0.00011399,2]
[355513797,1741221198270,-98.2648387,0.00011399,2]
[355513800,1741221651788,272.43,8.604e-05,2]
[355513803,1741222027234,1000.0,0.000115,4]
[355513804,1741222031645,659.631637,0.0001,2]
[355513812,1741222231853,-187.43,0.00010447,2]
[355513813,1741222231863,-250.0,0.00010498,2]
[355513814,1741222231873,-150.0,0.00010509,2]
[355513815,1741222231882,-441.78867921,0.00010519,2]
[355513816,1741222231894,-365.19994533,0.00010519,2]
[355513817,1741222231912,-193.01137546,0.00010519,2]
[355513818,1741222231921,-201.22567193,0.00010555,2]
[355513819,1741222231931,-272.43,0.00010868,2]
[355513820,1741222231941,-500.0,0.000109,3]
[355513821,1741222231951,-1000.0,0.000111,2]
[355513822,1741222231961,-1187.0,0.000112,2]
[355513823,1741222231971,-181.566859,0.00011269,2]
[355513824,1741222231983,-1308.644862,0.00011269,2]
[355513825,1741222231993,-402.035138,0.0001137,2]
[355513826,1741222232004,-375.904862,0.0001137,2]
[355513827,1741222232014,-441.35,0.0001137,2]
[355513828,1741222232023,-440.67,0.0001137,2]
[355513829,1741222232034,-417.41,0.0001137,2]
[355513830,1741222232043,-311.23165309,0.00011379,2]
[355513831,1741222232053,-171.07744389,0.00011386,2]
[355513832,1741222232063,-700.24683605,0.00011386,2]
[355513833,1741222232072,-647.0218,0.00011387,2]
[355513834,1741222232081,-368.7441,0.00011387,2]
[355513835,1741222232317,-225.8013,0.00011389,2]
[355513836,1741222232326,-171.07744389,0.00011391,2]
[355513837,1741222232337,-171.07744389,0.00011395,2]
[355513838,1741222232348,-541.068,0.000114,2]
[355513839,1741222232357,-171.07744389,0.000114,2]
[355513841,1741222232368,-1116.5133,0.000114,2]
[355513843,1741222232377,-151.80239001,0.00011473,2]
[355513845,1741222232389,-150.2035419,0.00011473,2]
[355513847,1741222232399,-162.3736462,0.00011478,3]
[355513849,1741222232409,-2812.40143358,0.00011479,2]
[355513852,1741222232427,-800.0,0.00011479,2]
[355513854,1741222232437,-295.44814184,0.00011479,2]
[355513859,1741222232476,-262.18282224,0.00011479,2]
[355513862,1741222232488,-1388.60156239,0.00011479,2]
[355513864,1741222232499,-927.61514,0.00011479,2]
[355513891,1741222237726,-159.99718696,0.00011473,2]
[355513892,1741222237738,-4562.1990304,0.00011479,2]
[355513893,1741222237803,-292772.41654576,0.00011479,2]
[355513894,1741222237817,-983.76745006,0.00011479,2]
[355513895,1741222237830,-1374.5550006,0.00011479,2]
[355513896,1741222237843,-1057.35125129,0.00011479,2]
[355513897,1741222237856,-449.500001,0.00011479,2]
[355513898,1741222237869,-736.57390145,0.00011479,2]
[355513899,1741222237881,-1026.92935832,0.00011479,2]
[355513900,1741222237895,-400.97885,0.00011479,2]
[355513901,1741222237908,-480.891175,0.00011479,2]
[355513902,1741222237923,-528.69395831,0.00011479,2]
[355513903,1741222237938,-859.54031443,0.00011479,2]
[355513904,1741222237952,-358.33485164,0.00011479,2]
[355513905,1741222238002,-10800.80763922,0.00011479,2]
[355513906,1741222238015,-5748.33832978,0.00011479,2]
[355513907,1741222238029,-4106.6159608,0.00011479,2]
[355513908,1741222238041,-1459.44,0.00011479,2]
[355513909,1741222238053,-8185.846207,0.00011479,2]
[355513910,1741222238072,-54327.72623502,0.00011479,2]
[355513911,1741222238088,-819.39997364,0.00011479,2]
[355513912,1741222238102,-1723.45869062,0.00011479,2]
[355513913,1741222238115,-1203.39744561,0.00011479,2]
[355513914,1741222238133,-498.014838,0.00011479,2]
[355513915,1741222238146,-9712.4213032,0.00011479,2]
[355513916,1741222238174,-26571.397263,0.00011479,2]
[355513917,1741222238186,-925.1,0.00011479,2]
[355513918,1741222238198,-689.32368187,0.00011479,2]
[355513925,1741222240031,-438.05390023,0.00011479,2]
[355513926,1741222240044,-5001.0461434,0.00011479,2]
[355513927,1741222240137,-655.28295906,0.00011479,2]
[355513944,1741222244218,-936.32296757,0.00011479,2]
[355513946,1741222245903,-1154.78123281,0.00011479,2]
[355513947,1741222245960,-5597.82971983,0.00011479,2]
[355513948,1741222691383,-1500.0,0.000116,4]
[355513949,1741222691406,-2000.0,0.000117,4]
[355513950,1741222720535,-2500.0,0.000118,4]
[355513951,1741222720561,-500.0,0.000119,4]
[355513952,1741222720585,-500.0,0.00012,5]
[355513954,1741222978866,245.18,8.591e-05,2]
[355513959,1741223176523,30196.3682544,0.0001,2]
[355513970,1741223432040,-152.97,0.00010469,2]
[355513971,1741223432050,-150.0,0.00010471,2]
[355513972,1741223432060,-187.33,0.00010474,2]
[355513973,1741223432070,-1000.0,0.00010492,2]
[355513974,1741223432083,-245.18,0.00010855,2]
[355513975,1741223432093,-550.0,0.00011,2]
[355513976,1741223432103,-258.19718384,0.00011269,2]
[355513977,1741223432119,-859.46160696,0.00011269,2]
[355513978,1741223432129,-300.0,0.00011379,2]
[355513979,1741223432138,-18672.2882,0.0001138,2]
[355513980,1741223432148,-1000.0,0.00011385,2]
[355513981,1741223432157,-174.38948778,0.00011385,2]
[355513982,1741223432167,-772.80591861,0.00011385,2]
[355513983,1741223432177,-174.38948774,0.00011388,2]
[355513984,1741223432186,-174.38948774,0.00011391,2]
[355513985,1741223432196,-174.38948774,0.00011394,2]
[355513986,1741223432206,-174.38948774,0.00011397,2]
[355513987,1741223432215,-158.28848571,0.000114,2]
[355513988,1741223432225,-174.38948774,0.000114,2]
[355513989,1741223432235,-1777.70594606,0.000114,2]
[355513990,1741223432244,-500.0,0.00011443,2]
[355513991,1741223432254,-500.0,0.00011443,2]
[355513992,1741223432263,-500.0,0.00011443,2]
[355513993,1741223432273,-500.0,0.00011443,2]
[355513994,1741223432282,-500.0,0.00011443,2]
[355513995,1741223432292,-468.1702,0.00011443,2]
[355513996,1741223432301,-152.11186103,0.00011473,2]
[355513997,1741223432311,-484.73112594,0.00011477,2]
[355513998,1741223432321,-150.0,0.00011477,2]
[355513999,1741223432330,-15847.29672882,0.00011478,2]
[355514000,1741223432342,-2817.81176359,0.00011478,2]
[355514001,1741223432358,-14021.5236,0.00011478,2]
[355514002,1741223432380,-1101.0,0.00011478,2]
[355514003,1741223432420,-387.0,0.00011478,2]
[355514018,1741223438128,-4175.35911836,0.00011478,2]
[355514019,1741223438140,-5850.44621552,0.00011478,2]
[355514020,1741223438151,-3211.91999948,0.00011478,2]
[355514021,1741223438176,-2115.75164638,0.00011478,2]
[355514022,1741223438186,-500.0,0.00011479,2]
[355514023,1741223438197,-500.0,0.00011479,2]
[355514024,1741223438207,-500.0,0.00011479,2]
[355514025,1741223438216,-500.0,0.00011479,2]
[355514026,1741223438226,-500.0,0.00011479,2]
[355514027,1741223438236,-500.0,0.00011479,2]
[355514028,1741223438254,-500.0,0.00011479,2]
[355514029,1741223438263,-500.0,0.00011479,2]
[355514030,1741223438273,-500.0,0.00011479,2]
[355514031,1741223438283,-500.0,0.00011479,2]
[355514032,1741223438297,-500.0,0.00011479,2]
[355514033,1741223438313,-500.0,0.00011479,2]
[355514034,1741223438324,-500.0,0.00011479,2]
[355514035,1741223438344,-500.0,0.00011479,2]
[355514036,1741223438357,-500.0,0.00011479,2]
[355514037,1741223438367,-500.0,0.00011479,2]
[355514038,1741223438377,-369.00358798,0.00011479,2]
[355514039,1741223438387,-500.0,0.00011479,2]
[355514040,1741223438396,-500.0,0.00011479,2]
[355514041,1741223438406,-500.0,0.00011479,2]
[355514042,1741223438415,-500.0,0.00011479,2]
[355514043,1741223438425,-578.73,0.00011479,2]
[355514044,1741223438434,-500.0,0.00011479,2]
[355514045,1741223438443,-500.0,0.00011479,2]
[355514046,1741223438453,-500.0,0.00011479,2]
[355514047,1741223438462,-756.04,0.00011479,2]
[355514048,1741223438471,-500.0,0.00011479,2]
[355514049,1741223438481,-500.0,0.00011479,2]
[355514050,1741223438490,-500.0,0.00011479,2]
[355514051,1741223438500,-500.0,0.00011479,2]
[355514052,1741223438509,-500.0,0.00011479,2]
[355514053,1741223438518,-500.0,0.00011479,2]
[355514055,1741223438528,-500.0,0.00011479,2]
[355514057,1741223438537,-500.0,0.00011479,2]
[355514059,1741223438546,-500.0,0.00011479,2]
[355514061,1741223438556,-500.0,0.00011479,2]
[355514062,1741223438565,-500.0,0.00011479,2]
[355514063,1741223438575,-500.0,0.00011479,2]
[355514064,1741223438585,-500.0,0.00011479,2]
[355514065,1741223438595,-500.0,0.00011479,2]
[355514066,1741223438604,-500.0,0.00011479,2]
[355514067,1741223438614,-500.0,0.00011479,2]
[355514068,1741223438623,-930.42775,0.00011479,2]
[355514069,1741223438633,-500.0,0.00011479,2]
[355514070,1741223438642,-500.0,0.00011479,2]
[355514071,1741223438652,-500.0,0.00011479,2]
[355514072,1741223438661,-500.0,0.00011479,2]
[355514073,1741223438670,-500.0,0.00011479,2]
[355514074,1741223438680,-500.0,0.00011479,2]
[355514075,1741223438689,-500.0,0.00011479,2]
[355514076,1741223438699,-500.0,0.00011479,2]
[355514077,1741223438709,-500.0,0.00011479,2]
[355514078,1741223438718,-504.11,0.00011479,2]
[355514079,1741223438727,-499.73105898,0.00011479,2]
[355514080,1741223438739,-0.26894102,0.00011479,2]
[355514081,1741223438748,-433.22284705,0.00011479,2]
[355514082,1741223438766,-66.77715295,0.00011479,2]
[355514083,1741223438777,-500.0,0.00011479,2]
[355514084,1741223438787,-420.92040002,0.00011479,2]
[355514085,1741223438797,-500.0,0.00011479,2]
[355514086,1741223438806,-500.0,0.00011479,2]
[355514087,1741223438815,-500.0,0.00011479,2]
[355514088,1741223438827,-155.0,0.00011479,3]
[355514089,1741223438837,-1420.61097571,0.0001148,2]
[355514090,1741223438849,-658.47843359,0.0001148,2]
[355514091,1741223441221,-1882.89912061,0.0001148,2]
[355514092,1741223441494,-500.0,0.00011484,2]
[355514093,1741223441504,-500.0,0.00011484,2]
[355514094,1741223441514,-500.0,0.00011484,2]
[355514095,1741223441524,-813.02,0.00011484,2]
[355514096,1741223441533,-705.06,0.00011484,2]
[355514097,1741223441543,-214.42724501,0.00011484,2]
[355514098,1741223441552,-932.65,0.00011484,2]
[355514099,1741223441561,-872.2,0.00011484,2]
[355514100,1741223441570,-500.0,0.00011484,2]
[355514101,1741223441580,-500.0,0.00011484,2]
[355514102,1741223441590,-501.45,0.00011484,2]
[355514103,1741223441600,-1340.67,0.00011484,2]
[355514104,1741223441609,-500.0,0.00011484,2]
[355514105,1741223441618,-954.52,0.00011484,2]
[355514106,1741223441627,-764.17,0.00011484,2]
[355514107,1741223441636,-507.39,0.00011484,2]
[355514108,1741223441646,-500.0,0.00011484,2]
[355514109,1741223441655,-807.65,0.00011484,2]
[355514110,1741223441664,-3850.62,0.00011484,2]
[355514111,1741223441674,-652.76,0.00011484,2]
[355514112,1741223441683,-500.0,0.00011484,2]
[355514113,1741223441692,-541.89,0.00011484,2]
[355514114,1741223441701,-530.17,0.00011484,2]
[355514115,1741223441711,-500.0,0.00011484,2]
[355514116,1741223441720,-500.0,0.00011484,2]
[355514117,1741223441730,-500.0,0.00011484,2]
[355514118,1741223441740,-4300.73,0.00011484,2]
[355514119,1741223441749,-500.0,0.00011484,2]
[355514120,1741223441758,-634.57,0.00011484,2]
[355514121,1741223441768,-572.947738,0.00011484,2]
[355514122,1741223441780,-500.0,0.00011484,2]
[355514123,1741223441789,-500.0,0.00011484,2]
[355514124,1741223441799,-1530.08,0.00011484,2]
[355514125,1741223441808,-760.31,0.00011484,2]
[355514126,1741223441818,-1147.17,0.00011484,2]
[355514127,1741223441828,-500.0,0.00011484,2]
[355514128,1741223441838,-903.34,0.00011484,2]
[355514129,1741223441849,-500.0,0.00011484,2]
[355514130,1741223441858,-740.8,0.00011484,2]
[355514131,1741223441867,-464.932339,0.00011485,2]
[355514132,1741223441877,-628.45,0.00011485,2]
[355514133,1741223441886,-500.0,0.00011485,2]
[355514134,1741223441895,-500.0,0.00011485,2]
[355514135,1741223441905,-500.0,0.00011485,2]
[355514136,1741223441920,-500.0,0.00011485,2]
[355514137,1741223441929,-500.0,0.00011485,2]
[355514138,1741223441938,-500.0,0.00011485,2]
[355514139,1741223441947,-500.0,0.00011485,2]
[355514140,1741223441957,-500.0,0.00011485,2]
[355514141,1741223441966,-500.0,0.00011485,2]
[355514142,1741223441975,-518.5650154,0.00011485,2]
[355514143,1741223441985,-500.0,0.00011485,2]
[355514144,1741223441994,-500.0,0.00011485,2]
[355514145,1741223442004,-641.32,0.00011485,2]
[355514146,1741223442014,-500.0,0.00011485,2]
[355514147,1741223442023,-500.0,0.00011485,2]
[355514148,1741223442032,-500.0,0.00011485,2]
[355514149,1741223442042,-500.0,0.00011485,2]
[355514150,1741223442051,-500.0,0.00011485,2]
[355514151,1741223442060,-500.0,0.00011485,2]
[355514152,1741223442069,-500.0,0.00011485,2]
[355514153,1741223442079,-500.0,0.00011485,2]
[355514154,1741223442088,-500.0,0.00011485,2]
[355514155,1741223442098,-337.48156045,0.00011485,2]
[355514156,1741223442107,-500.0,0.00011485,2]
[355514157,1741223442116,-500.0,0.00011485,2]
[355514158,1741223442126,-500.0,0.00011485,2]
[355514159,1741223442135,-335.05449788,0.00011485,2]
[355514160,1741223442145,-500.0,0.00011485,2]
[355514161,1741223442154,-500.0,0.00011485,2]
[355514162,1741223442164,-500.0,0.00011485,2]
[355514163,1741223442173,-268.0,0.00011485,2]
[355514164,1741223442182,-500.0,0.00011485,2]
[355514165,1741223442191,-500.0,0.00011485,2]
[355514166,1741223442204,-500.0,0.00011485,2]
[355514167,1741223442214,-500.0,0.00011485,2]
[355514168,1741223442223,-532.72,0.00011485,2]
[355514169,1741223442232,-500.0,0.00011485,2]
[355514170,1741223442242,-500.0,0.00011485,2]
[355514171,1741223442251,-500.0,0.00011485,2]
[355514172,1741223442261,-500.0,0.00011485,2]
[355514173,1741223442270,-500.0,0.00011485,2]
[355514174,1741223442280,-504.08774961,0.00011485,2]
[355514175,1741223442289,-500.0,0.00011485,2]
[355514176,1741223442299,-500.0,0.00011485,2]
[355514177,1741223442308,-500.0,0.00011485,2]
[355514178,1741223442317,-500.0,0.00011485,2]
[355514179,1741223442327,-500.0,0.00011485,2]
[355514180,1741223442336,-500.0,0.00011485,2]
[355514181,1741223442346,-500.0,0.00011485,2]
[355514182,1741223442355,-180.57789478,0.00011485,2]
[355514183,1741223442365,-472.99,0.00011485,2]
[355514184,1741223442374,-500.0,0.00011485,2]
[355514185,1741223442383,-531.81,0.00011485,2]
[355514186,1741223442392,-500.0,0.00011485,2]
[355514187,1741223442402,-500.0,0.00011485,2]
[355514188,1741223442412,-500.0,0.00011485,2]
[355514189,1741223442421,-500.0,0.00011485,2]
[355514190,1741223442431,-500.0,0.00011485,2]
[355514191,1741223442441,-500.0,0.00011485,2]
[355514192,1741223442450,-500.0,0.00011485,2]
[355514193,1741223442461,-543.7051393,0.00011485,2]
[355514194,1741223442470,-500.0,0.00011485,2]
[355514195,1741223442479,-500.0,0.00011485,2]
[355514196,1741223442488,-604.38,0.00011485,2]
[355514197,1741223442498,-500.0,0.00011485,2]
[355514198,1741223442507,-575.8,0.00011485,2]
[355514199,1741223442516,-500.0,0.00011485,2]
[355514200,1741223442526,-500.0,0.00011485,2]
[355514201,1741223442535,-648.27618681,0.00011485,2]
[355514202,1741223442544,-500.0,0.00011485,2]
[355514203,1741223442554,-500.0,0.00011485,2]
[355514204,1741223442563,-500.0,0.00011485,2]
[355514205,1741223442573,-500.0,0.00011485,2]
[355514206,1741223442582,-500.0,0.00011485,2]
[355514207,1741223442591,-507.26,0.00011485,2]
[355514208,1741223442602,-500.0,0.00011485,2]
[355514209,1741223442611,-500.0,0.00011485,2]
[355514210,1741223442621,-500.0,0.00011485,2]
[355514211,1741223442630,-641.88,0.00011485,2]
[355514212,1741223442639,-500.0,0.00011485,2]
[355514213,1741223442649,-500.0,0.00011485,2]
[355514214,1741223442659,-500.0,0.00011485,2]
[355514215,1741223442668,-500.0,0.00011485,2]
[355514216,1741223442678,-500.0,0.00011485,2]
[355514217,1741223442687,-500.0,0.00011485,2]
[355514218,1741223442696,-500.0,0.00011485,2]
[355514219,1741223442706,-505.88,0.00011485,2]
[355514220,1741223442715,-500.0,0.00011485,2]
[355514221,1741223442724,-500.0,0.00011485,2]
[355514222,1741223442734,-211.22687884,0.00011485,2]
[355514223,1741223442746,-500.0,0.00011485,2]
[355514224,1741223442757,-500.0,0.00011485,2]
[355514225,1741223442767,-500.0,0.00011485,2]
[355514226,1741223442777,-644.96,0.00011485,2]
[355514227,1741223442789,-500.0,0.00011485,2]
[355514228,1741223442798,-500.0,0.00011485,2]
[355514229,1741223442807,-500.0,0.00011485,2]
[355514230,1741223442819,-500.0,0.00011485,2]
[355514231,1741223442828,-496.91526783,0.00011485,2]
[355514252,1741223444185,-3.08473217,0.00011485,2]
[355514253,1741223444194,-500.0,0.00011485,2]
[355514254,1741223444204,-500.0,0.00011485,2]
[355514255,1741223444213,-500.0,0.00011485,2]
[355514256,1741223444223,-500.0,0.00011485,2]
[355514257,1741223444232,-500.0,0.00011485,2]
[355514258,1741223444241,-517.83,0.00011485,2]
[355514259,1741223444251,-500.0,0.00011485,2]
[355514260,1741223444261,-500.0,0.00011485,2]
[355514261,1741223444270,-500.0,0.00011485,2]
[355514262,1741223444280,-545.44,0.00011485,2]
[355514263,1741223444289,-500.0,0.00011485,2]
[355514264,1741223444298,-532.92,0.00011485,2]
[355514265,1741223444307,-649.64,0.00011485,2]
[355514266,1741223444317,-529.93,0.00011485,2]
[355514267,1741223444326,-500.0,0.00011485,2]
[355514268,1741223444335,-500.0,0.00011485,2]
[355514269,1741223444345,-500.0,0.00011485,2]
[355514270,1741223444354,-417.66941982,0.00011485,2]
[355514271,1741223444363,-500.0,0.00011485,2]
[355514272,1741223444372,-500.0,0.00011485,2]
[355514273,1741223444380,-500.0,0.00011485,2]
[355514274,1741223444389,-281.29314198,0.00011485,2]
[355514622,1741223601244,300.0,0.00012,4]
[355514623,1741223609283,528.90669,0.00012,4]
[355514624,1741224091459,220.66,8.642e-05,2]
[355514642,1741224632674,-1000.0,0.00010615,2]
[355514643,1741224632683,-220.66,0.00010906,2]
[355514644,1741224632693,-560.81799999,0.00011,2]
[355514645,1741224632703,-498.73951334,0.00011013,2]
[355514646,1741224632712,-498.73951334,0.00011044,2]
[355514647,1741224632722,-433.3876284,0.00011063,2]
[355514648,1741224632732,-498.73951334,0.00011066,2]
[355514649,1741224632741,-433.3876284,0.00011082,2]
[355514650,1741224632750,-433.3876284,0.00011084,2]
[355514651,1741224632760,-838.2440931,0.00011255,2]
[355514652,1741224632770,-1758.48767732,0.000113,2]
[355514654,1741224632806,-259.41179346,0.000113,2]
[355514656,1741224632816,-1765.78263941,0.00011384,2]
[355514683,1741224638248,-252.11683137,0.00011384,2]
[355514684,1741224638258,-5025.188,0.00011385,2]
[355514685,1741224638267,-644.0049322,0.00011397,2]
[355514686,1741224638276,-167.07646177,0.00011398,2]
[355514687,1741224638286,-311.23165308,0.00011398,2]
[355514688,1741224638295,-167.07646177,0.00011399,2]
[355514689,1741224638304,-167.07646177,0.00011399,2]
[355514690,1741224638314,-167.07646177,0.000114,2]
[355514691,1741224638323,-160.20218536,0.00011473,2]
[355514692,1741224638332,-150.0,0.00011483,2]
[355514693,1741224638342,-500.0,0.00011484,2]
[355514694,1741224638351,-500.0,0.00011484,2]
[355514695,1741224638364,-500.0,0.00011484,2]
[355514696,1741224638374,-500.0,0.00011484,2]
[355514697,1741224638384,-500.0,0.00011484,2]
[355514698,1741224638393,-500.0,0.00011484,2]
[355514699,1741224638403,-500.0,0.00011484,2]
[355514700,1741224638412,-500.0,0.00011484,2]
[355514701,1741224638423,-500.0,0.00011484,2]
[355514702,1741224638432,-647.88,0.00011484,2]
[355514703,1741224638442,-500.0,0.00011484,2]
[355514704,1741224638451,-500.0,0.00011484,2]
[355514705,1741224638461,-500.0,0.00011484,2]
[355514706,1741224638470,-500.0,0.00011484,2]
[355514707,1741224638480,-203.3,0.00011484,2]
[355514708,1741224638490,-500.0,0.00011484,2]
[355514709,1741224638499,-500.0,0.00011484,2]
[355514710,1741224638509,-500.0,0.00011484,2]
[355514711,1741224638518,-184.96,0.00011484,2]
[355514712,1741224638527,-500.0,0.00011484,2]
[355514713,1741224638536,-500.0,0.00011484,2]
[355514714,1741224638545,-500.0,0.00011484,2]
[355514715,1741224638554,-524.43,0.00011484,2]
[355514716,1741224638564,-500.0,0.00011484,2]
[355514717,1741224638574,-500.0,0.00011484,2]
[355514718,1741224638583,-500.0,0.00011484,2]
[355514719,1741224638593,-500.0,0.00011484,2]
[355514720,1741224638602,-500.0,0.00011484,2]
[355514721,1741224638614,-500.0,0.00011484,2]
[355514722,1741224638623,-500.0,0.00011484,2]
[355514724,1741224638632,-500.0,0.00011484,2]
[355514725,1741224638642,-500.0,0.00011484,2]
[355514727,1741224638651,-500.0,0.00011484,2]
[355514729,1741224638660,-724.53,0.00011484,2]
[355514731,1741224638670,-500.0,0.00011484,2]
[355514733,1741224638679,-436.24255796,0.00011484,2]
[355514735,1741224638688,-500.0,0.00011484,2]
[355514736,1741224638698,-592.79,0.00011484,2]
[355514737,1741224638707,-500.0,0.00011484,2]
[355514738,1741224638716,-500.0,0.00011484,2]
[355514739,1741224638726,-500.0,0.00011484,2]
[355514740,1741224638735,-500.0,0.00011484,2]
[355514741,1741224638744,-500.0,0.00011484,2]
[355514742,1741224638753,-500.0,0.00011484,2]
[355514743,1741224638763,-500.0,0.00011484,2]
[355514744,1741224638772,-500.0,0.00011484,2]
[355514745,1741224638781,-572.56252385,0.00011484,2]
[355514746,1741224638791,-217.53111966,0.00011484,2]
[355514747,1741224638803,-282.46888034,0.00011484,2]
[355514748,1741224638814,-500.0,0.00011484,2]
[355514749,1741224638823,-183.42604718,0.00011484,2]
[355514750,1741224638835,-316.57395282,0.00011484,2]
[355514751,1741224638843,-136.54604718,0.00011484,2]
[355514752,1741224638963,-363.45395282,0.00011484,2]
[355514753,1741224638972,-500.0,0.00011484,2]
[355514754,1741224638982,-500.0,0.00011484,2]
[355514755,1741224638991,-500.0,0.00011484,2]
[355514756,1741224639001,-154.44551796,0.00011484,2]
[355514757,1741224640055,600.0,0.0001018,2]
[355514759,1741224640472,-345.55448204,0.00011484,2]
[355514760,1741224640481,-500.0,0.00011484,2]
[355514761,1741224640491,-500.0,0.00011484,2]
[355514762,1741224640500,-500.0,0.00011484,2]
[355514763,1741224640509,-500.0,0.00011484,2]
[355514764,1741224640519,-500.0,0.00011484,2]
[355514765,1741224640528,-500.0,0.00011484,2]
[355514766,1741224640536,-500.0,0.00011484,2]
[355514767,1741224640546,-500.0,0.00011484,2]
[355514768,1741224640555,-500.0,0.00011484,2]
[355514769,1741224640565,-500.0,0.00011484,2]
[355514770,1741224640575,-500.0,0.00011485,2]
[355514771,1741224640584,-500.0,0.00011485,2]
[355514772,1741224640594,-500.0,0.00011485,2]
[355514773,1741224640603,-500.0,0.00011485,2]
[355514774,1741224640615,-273.27,0.00011485,2]
[355514775,1741224640624,-500.0,0.00011485,2]
[355514776,1741224640634,-500.0,0.00011485,2]
[355514777,1741224640643,-165.93,0.00011485,2]
[355514778,1741224640653,-1010.18648887,0.00011485,2]
[355514779,1741224640662,-500.0,0.00011485,2]
[355514780,1741224640671,-500.0,0.00011485,2]
[355514781,1741224640681,-500.0,0.00011485,2]
[355514782,1741224640690,-151.0,0.00011485,2]
[355514783,1741224640700,-775.35646,0.00011485,2]
[355514784,1741224640709,-10740.63644246,0.00011485,2]
[355514785,1741224640719,-203.72656203,0.0001149,2]
[355514786,1741224640728,-865.7,0.00011496,2]
[355514787,1741224640737,-890.94,0.00011496,2]
[355514788,1741224640747,-2095.8,0.00011496,2]
[355514789,1741224640756,-630.2,0.00011496,2]
[355514790,1741224640765,-500.0,0.00011496,2]
[355514791,1741224640774,-703.75,0.00011496,2]
[355514792,1741224640783,-510.22,0.00011496,2]
[355514793,1741224640791,-624.85,0.00011496,2]
[355514794,1741224640800,-500.0,0.00011496,2]
[355514795,1741224640810,-1197.53,0.00011496,2]
[355514796,1741224640819,-2013.8,0.00011496,2]
[355514797,1741224640829,-799.07,0.00011496,2]
[355514798,1741224640838,-523.24,0.00011496,2]
[355514799,1741224640847,-1679.72,0.00011496,2]
[355514800,1741224640857,-500.0,0.00011496,2]
[355514801,1741224640868,-1061.86,0.00011496,2]
[355514802,1741224640877,-500.0,0.00011497,2]
[355514803,1741224640886,-500.0,0.00011497,2]
[355514804,1741224640895,-490.62,0.00011497,2]
[355514805,1741224640904,-500.0,0.00011497,2]
[355514806,1741224640913,-500.0,0.00011497,2]
[355514807,1741224640922,-500.0,0.00011497,2]
[355514808,1741224640932,-500.0,0.00011497,2]
[355514809,1741224640940,-500.0,0.00011497,2]
[355514811,1741224640949,-500.0,0.00011497,2]
[355514813,1741224640958,-500.0,0.00011497,2]
[355514815,1741224640967,-500.0,0.00011497,2]
[355514817,1741224640976,-500.0,0.00011497,2]